bitfinex/quotes_BTCUSD_20250410
["timestamp","ask_amount","ask_price","bid_price","bid_amount"]
[1744292315840,0.0044257,81139.0,81126.0,0.12055382]
[1744292315994,0.0044257,81139.0,81128.0,0.246522]
[1744292316203,0.0044257,81139.0,81129.0,0.12301856]
[1744292316403,0.0044257,81139.0,81137.0,0.246495]
[1744292316602,0.0044257,81139.0,81129.0,0.13534451]
[1744292316603,0.0044257,81139.0,81129.0,0.36706782]
[1744292316805,0.0044257,81139.0,81118.0,0.012327]
[1744292317004,0.0044257,81139.0,81125.0,0.012326]
[1744292317187,0.0044257,81139.0,81128.0,0.012326]
[1744292317385,0.0044257,81139.0,81129.0,0.136307]
[1744292317612,0.0044257,81139.0,81129.0,0.01575318]
[1744292317813,0.0044257,81139.0,81131.0,0.246514]
[1744292318017,0.0044257,81139.0,81129.0,0.01575318]
[1744292318242,0.0044257,81139.0,81119.0,0.246549]
[1744292318243,0.0044257,81139.0,81124.0,0.246534]
[1744292318566,0.0044257,81139.0,81125.0,0.12055382]
[1744292318698,0.0044257,81139.0,81118.0,0.246554]
[1744292318897,0.0044257,81139.0,81115.0,0.012328]
[1744292318898,0.0044257,81139.0,81119.0,0.12055382]
[1744292319328,0.0044257,81139.0,81136.0,0.246497]
[1744292319526,0.0044257,81139.0,81127.0,0.012326]
[1744292319730,0.0044257,81139.0,81103.0,0.047]
[1744292319906,0.0044257,81139.0,81119.0,0.012327]
[1744292320106,0.0044257,81139.0,81120.0,0.16081042]
[1744292320305,0.0044257,81139.0,81120.0,0.12055382]
[1744292320511,0.0044257,81139.0,81126.0,0.012326]
[1744292320707,0.0044257,81139.0,81131.0,0.012325]
[1744292321067,0.0003382,81152.0,81138.0,0.12055382]
[1744292321194,0.0003382,81152.0,81151.0,0.246454]
[1744292321389,0.00046587,81152.0,81141.0,0.012324]
[1744292321638,0.00046587,81152.0,81132.0,0.0485]
[1744292321841,0.00046587,81152.0,81140.0,0.36703982]
[1744292322041,0.00046587,81152.0,81141.0,0.03670398]
[1744292322242,0.00046587,81152.0,81131.0,0.258839]
[1744292322504,0.00046587,81152.0,81150.0,0.246456]
[1744292322856,0.00046587,81152.0,81151.0,0.12055382]
[1744292323088,0.00046587,81152.0,81151.0,0.18559672]
[1744292323293,0.00046587,81152.0,81151.0,0.1954547]
[1744292323443,0.00046587,81152.0,81151.0,0.21245933]
[1744292323662,0.00046587,81152.0,81151.0,0.2444547]
[1744292323903,0.00046587,81152.0,81151.0,0.25899555]
[1744292324036,0.00046587,81152.0,81151.0,0.2321327]
[1744292324242,0.00046587,81152.0,81140.0,0.012324]
[1744292324243,0.00046587,81152.0,81142.0,0.246479]
[1744292324436,0.00046587,81152.0,81147.0,0.246465]
[1744292324698,0.00046587,81152.0,81150.0,0.246456]
[1744292324903,0.00046587,81152.0,81151.0,0.12055382]
[1744292325118,0.00046587,81152.0,81137.0,0.246496]
[1744292325255,0.00046587,81152.0,81148.0,0.24646]
[1744292325457,0.00046587,81152.0,81150.0,0.246456]
[1744292326024,0.00046587,81152.0,81141.0,0.246484]
[1744292326172,0.00046587,81152.0,81140.0,0.29126167]
[1744292326371,0.01278787,81152.0,81140.0,0.04477467]
[1744292326578,0.00046587,81152.0,81123.0,0.0483]
[1744292326790,0.246469,81146.0,81124.0,0.12055382]
[1744292326991,0.246457,81150.0,81124.0,0.12055382]
[1744292327185,0.68992159,81140.0,81125.0,0.03671018]
[1744292327383,0.4,81151.0,81125.0,0.13287982]
[1744292327606,0.4,81151.0,81135.0,0.012325]
[1744292327813,0.0003358,81172.0,81148.0,0.24646]
[1744292328022,0.0003358,81172.0,81149.0,0.024646]
[1744292328210,0.0003358,81172.0,81135.0,0.012325]
[1744292328211,0.246395,81171.0,81138.0,0.012324]
[1744292328412,0.0126548,81172.0,81149.0,0.246458]
[1744292328613,0.0126548,81172.0,81139.0,0.36704382]
[1744292328614,0.016319,81169.0,81139.0,0.36704382]
[1744292328812,0.246414,81165.0,81142.0,0.24648]
[1744292329013,0.004,81169.0,81150.0,0.246454]
[1744292329248,0.004,81169.0,81151.0,0.0024643]
[1744292329665,0.004,81169.0,81147.0,0.012323]
[1744292329666,0.01232,81168.0,81142.0,0.12055382]
[1744292329958,0.004,81169.0,81148.0,0.246461]
[1744292330113,0.004,81169.0,81150.0,0.246456]
[1744292330314,0.004,81169.0,81145.0,0.24647]
[1744292330315,0.01232,81167.0,81145.0,0.24647]
[1744292330544,0.01232,81168.0,81126.0,0.012326]
[1744292330742,0.258766,81155.0,81133.0,0.12055382]
[1744292330901,0.0003362,81157.0,81150.0,0.246456]
[1744292331097,0.0003362,81157.0,81142.0,0.012324]
[1744292331331,0.0003362,81157.0,81143.0,0.12055382]
[1744292331534,0.0003362,81157.0,81126.0,0.012326]
[1744292331535,0.0003362,81157.0,81138.0,0.246491]
[1744292331738,0.13287582,81151.0,81119.0,0.012327]
[1744292331938,0.246439,81156.0,81136.0,0.246499]
[1744292332132,0.012322,81153.0,81137.0,0.00246458]
[1744292332408,0.40046587,81152.0,81122.0,0.012327]
[1744292332615,0.40046587,81152.0,81146.0,0.246469]
[1744292332819,0.40046587,81152.0,81150.0,0.246456]
[1744292332820,0.00046587,81152.0,81150.0,0.246456]
[1744292333095,0.00046587,81152.0,81151.0,0.18487775]
[1744292333252,0.00046587,81152.0,81151.0,0.17255575]
[1744292334057,8.7e-07,81152.0,81151.0,0.19941805]
[1744292334254,0.0003362,81157.0,81151.0,0.19941805]
[1744292334255,7e-08,81157.0,81156.0,0.27329985]
[1744292334588,0.0003358,81185.0,81156.0,0.27329985]
[1744292334589,8e-07,81172.0,81171.0,0.27325285]
[1744292334906,8e-07,81172.0,81171.0,0.39380667]
[1744292335827,8e-07,81172.0,81171.0,0.36694682]
[1744292336071,8e-07,81172.0,81171.0,0.43748167]
[1744292336556,8e-07,81172.0,81171.0,0.45202252]
[1744292337097,0.0003358,81185.0,81182.0,0.258678]
[1744292337300,8e-07,81202.0,81201.0,0.27315785]
[1744292337512,8e-07,81202.0,81201.0,0.48692692]
[1744292337701,0.0003358,81221.0,81220.0,0.012312]
[1744292337909,0.0003358,81221.0,81220.0,0.14740667]
[1744292338192,0.0003358,81221.0,81220.0,0.13509467]
[1744292338392,0.0003358,81221.0,81220.0,0.14740667]
[1744292338594,0.0003358,81221.0,81220.0,0.17876967]
[1744292338841,0.0003358,81221.0,81201.0,0.0483]
[1744292338842,0.0003358,81221.0,81208.0,0.01454085]
[1744292339029,0.0003358,81221.0,81193.0,0.39856673]
[1744292339030,0.246253,81217.0,81193.0,0.012316]
[1744292339229,0.0003358,81221.0,81194.0,0.36687482]
[1744292339438,0.012312,81220.0,81198.0,0.246308]
[1744292339640,0.01307342,81221.0,81199.0,0.1597032]
[1744292339850,0.00076142,81221.0,81199.0,0.1597032]
[1744292340052,0.00076142,81221.0,81199.0,0.4060112]
[1744292340053,0.246246,81220.0,81199.0,0.4060112]
[1744292340269,0.246246,81220.0,81195.0,0.258633]
[1744292340270,0.00076142,81221.0,81180.0,0.68992159]
[1744292340470,0.00076142,81221.0,81208.0,0.258595]
[1744292340772,0.00076142,81221.0,81209.0,0.12301598]
[1744292340933,0.012312,81218.0,81180.0,0.68992159]
[1744292341112,0.00076142,81221.0,81201.0,0.2463]
[1744292341315,0.00076142,81221.0,81202.0,0.36685082]
[1744292341520,0.00076142,81221.0,81220.0,0.012312]
[1744292341750,0.00076142,81221.0,81192.0,0.012316]
[1744292341916,0.00076142,81221.0,81215.0,0.246258]
[1744292342114,0.00076142,81221.0,81216.0,0.00246215]
[1744292342338,0.012312,81219.0,81197.0,0.01454085]
[1744292342545,0.00076142,81221.0,81205.0,0.246289]
[1744292342743,0.00076142,81221.0,81206.0,0.13509467]
[1744292342952,0.012313,81213.0,81186.0,0.41088373]
[1744292343161,0.258599,81207.0,81188.0,0.12055382]
[1744292343360,0.012315,81201.0,81189.0,0.0182842]
[1744292343516,0.012315,81201.0,81169.0,0.246398]
[1744292343517,0.258717,81170.0,81141.0,0.0533]
[1744292343718,0.258717,81170.0,81147.0,0.246464]
[1744292343719,0.246404,81168.0,81147.0,0.246464]
[1744292343999,0.012321,81160.0,81148.0,0.04039878]
[1744292344198,0.412319,81169.0,81141.0,0.0533]
[1744292344199,0.012323,81149.0,81141.0,0.004]
[1744292344353,0.01232,81163.0,81141.0,0.12455382]
[1744292344565,0.012322,81154.0,81142.0,0.02512531]
[1744292344733,0.012321,81160.0,81141.0,0.004]
[1744292344734,0.68992159,81160.0,81141.0,0.004]
[1744292344936,0.30486477,81179.0,81153.0,0.012322]
[1744292345136,0.01232,81167.0,81144.0,0.246475]
[1744292345342,0.012319,81171.0,81142.0,0.12055382]
[1744292345343,0.246403,81168.0,81145.0,0.1715718]
[1744292345543,0.4,81167.0,81146.0,0.00246401]
[1744292345784,0.4,81167.0,81147.0,0.12055382]
[1744292346040,0.246436,81157.0,81147.0,0.12055382]
[1744292346327,0.258793,81146.0,81141.0,0.00412767]
[1744292346479,0.012323,81149.0,81141.0,0.00412767]
[1744292346639,0.246445,81154.0,81142.0,0.0130827]
[1744292346841,0.30486477,81190.0,81143.0,0.1230184]
[1744292347049,0.0001679,81235.0,81175.0,0.012319]
[1744292347050,0.012314,81202.0,81175.0,0.012319]
[1744292347271,0.012314,81202.0,81176.0,0.36692882]
[1744292347475,0.012314,81202.0,81177.0,0.03937887]
[1744292347476,0.012315,81199.0,81177.0,0.03937887]
[1744292347677,0.246313,81198.0,81178.0,0.12055382]
[1744292347860,0.246308,81199.0,81178.0,0.12055382]
[1744292348053,0.012316,81191.0,81178.0,0.12055382]
[1744292348300,0.246278,81209.0,81181.0,0.012318]
[1744292348500,0.00012758,81199.0,81182.0,0.36937308]
[1744292348706,0.00012758,81199.0,81183.0,0.06317374]
[1744292348906,0.246331,81192.0,81183.0,0.06317374]
[1744292349102,0.012316,81194.0,81166.0,0.246407]
[1744292349304,0.00012758,81199.0,81168.0,0.01454085]
[1744292349305,0.012317,81188.0,81168.0,0.01454085]
[1744292349512,0.012319,81169.0,81155.0,0.00908359]
[1744292349914,0.258719,81169.0,81156.0,0.12055382]
[1744292350089,0.34,81179.0,81156.0,0.12055382]
[1744292350090,0.012317,81183.0,81163.0,0.246415]
[1744292350297,0.012317,81183.0,81156.0,0.12055382]
[1744292350298,0.246372,81178.0,81164.0,0.14519532]
[1744292350493,0.246372,81178.0,81151.0,0.062022]
[1744292350494,0.012319,81175.0,81165.0,0.00246365]
[1744292350699,0.68992159,81190.0,81149.0,0.01454085]
[1744292350700,0.01232,81166.0,81149.0,0.02285481]
[1744292350893,0.258725,81168.0,81150.0,0.12055382]
[1744292351119,0.00012753,81178.0,81151.0,0.05130946]
[1744292351319,0.00012753,81178.0,81163.0,0.246417]
[1744292351494,0.00012753,81178.0,81146.0,0.246467]
[1744292351495,0.012319,81174.0,81146.0,0.246467]
[1744292351713,0.012321,81160.0,81147.0,0.12055382]
[1744292351879,0.01232,81168.0,81147.0,0.12055382]
[1744292352076,0.012317,81188.0,81156.0,0.012321]
[1744292352375,0.012317,81188.0,81149.0,0.012323]
[1744292352376,0.012315,81196.0,81166.0,0.01232]
[1744292352577,0.012317,81187.0,81167.0,0.12055382]
[1744292352819,0.012319,81174.0,81151.0,0.246452]
[1744292353021,0.012321,81162.0,81152.0,0.14640456]
[1744292353226,0.012321,81162.0,81141.0,0.004]
[1744292353227,0.012322,81151.0,81141.0,0.004]
[1744292353425,0.012324,81142.0,81141.0,0.004]
[1744292353797,0.246424,81161.0,81141.0,0.12455382]
[1744292354027,0.258745,81161.0,81142.0,0.1576586]
[1744292354226,0.246431,81159.0,81142.0,0.12055382]
[1744292354425,0.01232,81163.0,81142.0,0.36703282]
[1744292354631,0.012323,81148.0,81141.0,0.004]
[1744292354826,0.258805,81142.0,81141.0,0.004]
[1744292355026,0.71935882,81142.0,81141.0,0.004]
[1744292355260,0.258846,81129.0,81128.0,0.0003356]
[1744292355460,0.246489,81140.0,81128.0,0.0003356]
[1744292355650,0.012326,81129.0,81128.0,0.0003356]
[1744292355828,0.012325,81135.0,81128.0,0.0003356]
[1744292355829,0.4,81139.0,81128.0,0.0003356]
[1744292356006,0.4,81139.0,81128.0,0.2472823]
[1744292356209,0.4,81139.0,81129.0,0.14920104]
[1744292356491,0.4,81139.0,81129.0,0.12055382]
[1744292356767,1.26832,81181.0,81140.0,0.01454085]
[1744292356941,0.12055382,81180.0,81153.0,0.012322]
[1744292357145,0.012321,81161.0,81142.0,0.01454085]
[1744292357325,0.012321,81161.0,81113.0,1.134206]
[1744292357326,0.246442,81155.0,81143.0,0.04299907]
[1744292357529,0.246442,81155.0,81128.0,0.01487645]
[1744292357530,0.01232,81164.0,81145.0,0.01454085]
[1744292357748,0.01232,81164.0,81144.0,0.12055382]
[1744292357749,0.012321,81159.0,81136.0,0.246497]
[1744292358070,0.012321,81160.0,81137.0,0.14520352]
[1744292358272,0.012321,81160.0,81137.0,0.12068149]
[1744292358468,0.246407,81167.0,81138.0,0.01454085]
[1744292358667,0.246407,81167.0,81137.0,0.12068149]
[1744292358668,0.012322,81154.0,81139.0,0.12301812]
[1744292358979,0.01232,81163.0,81130.0,0.012325]
[1744292359223,0.246412,81165.0,81140.0,0.12055382]
[1744292359438,0.012323,81145.0,81119.0,0.246549]
[1744292359609,0.258787,81148.0,81127.0,0.12055382]
[1744292359809,0.258787,81148.0,81109.0,0.25585109]
[1744292359810,0.012326,81129.0,81102.0,0.39856673]
[1744292359954,0.012324,81137.0,81115.0,0.246562]
[1744292360154,0.012325,81135.0,81116.0,0.1576654]
[1744292360361,0.012325,81135.0,81116.0,0.12055382]
[1744292360362,0.246519,81130.0,81116.0,0.12055382]
[1744292360575,0.246522,81129.0,81111.0,0.00646513]
[1744292360833,0.00012744,81135.0,81113.0,0.246569]
[1744292360986,0.00012744,81135.0,81114.0,0.12301891]
[1744292360987,0.24651,81133.0,81114.0,0.12301891]
[1744292361185,0.258832,81134.0,81115.0,0.06201659]
[1744292361548,0.00012744,81135.0,81120.0,0.246546]
[1744292361764,0.00012744,81135.0,81115.0,0.06201659]
[1744292361765,0.01245244,81135.0,81121.0,0.12055382]
[1744292361931,0.012328,81115.0,81114.0,0.0003356]
[1744292362446,0.412328,81115.0,81114.0,0.0003356]
[1744292362624,0.4,81115.0,81114.0,0.0003356]
[1744292363008,0.68992159,81140.0,81114.0,0.0003356]
[1744292363238,0.70224559,81140.0,81116.0,0.24656]
[1744292363440,0.246492,81139.0,81119.0,0.246548]
[1744292363605,0.012324,81136.0,81117.0,0.02656888]
[1744292363808,0.012324,81136.0,81116.0,0.12055382]
[1744292364002,0.646494,81138.0,81119.0,0.246549]
[1744292364208,0.012325,81134.0,81116.0,0.12055382]
[1744292364418,0.012327,81120.0,81114.0,0.0003356]
[1744292364643,0.12055382,81134.0,81114.0,0.0003356]
[1744292364846,0.93641059,81140.0,81115.0,0.12301931]
[1744292364847,0.246489,81140.0,81115.0,0.12301931]
[1744292365053,0.246481,81143.0,81123.0,0.246536]
[1744292365271,1.515033,81145.0,81124.0,0.12055382]
[1744292365272,1.26856,81145.0,81124.0,0.12055382]
[1744292365481,0.246489,81140.0,81124.0,0.12055382]
[1744292365676,0.246498,81137.0,81117.0,0.246556]
[1744292365877,0.258815,81139.0,81118.0,0.12055382]
[1744292366077,0.4,81144.0,81119.0,0.01208894]
[1744292366253,0.4,81144.0,81123.0,0.246538]
[1744292366453,0.4,81144.0,81124.0,0.12055382]
[1744292366860,0.4,81144.0,81133.0,0.246507]
[1744292367070,0.4,81144.0,81134.0,0.0024647]
[1744292367376,0.012318,81176.0,81134.0,0.13534352]
[1744292367583,0.16118352,81178.0,81154.0,0.012322]
[1744292367899,0.1613111,81178.0,81162.0,0.246417]
[1744292368124,0.1613111,81178.0,81163.0,0.0246417]
[1744292368311,0.012319,81174.0,81155.0,0.12055382]
[1744292368514,0.246384,81175.0,81155.0,0.12055382]
[1744292368659,0.012319,81173.0,81155.0,0.12055382]
[1744292368864,0.012319,81174.0,81156.0,0.03670048]
[1744292369075,0.00012758,81178.0,81157.0,0.12055382]
[1744292369435,0.00012758,81178.0,81159.0,0.246428]
[1744292369643,0.00012758,81178.0,81177.0,0.258693]
[1744292369842,0.00012758,81178.0,81177.0,0.39378767]
[1744292370021,0.012318,81176.0,81150.0,1.26876]
[1744292370226,0.00012758,81178.0,81160.0,0.012321]
[1744292370422,0.00012758,81178.0,81176.0,0.246377]
[1744292370623,0.00012758,81178.0,81177.0,0.12055382]
[1744292370932,0.00012758,81178.0,81166.0,0.246405]
[1744292371128,0.00012758,81178.0,81168.0,0.01232]
[1744292371359,0.00012758,81178.0,81159.0,0.246427]
[1744292371550,0.00012758,81178.0,81176.0,0.246376]
[1744292371743,0.00012758,81178.0,81177.0,0.12301712]
[1744292371953,0.00012758,81178.0,81177.0,0.12055382]
[1744292372127,0.00012758,81178.0,81177.0,0.14987584]
[1744292372306,0.0001679,81197.0,81177.0,0.14987584]
[1744292372307,0.0001679,81197.0,81196.0,0.258632]
[1744292372667,0.0001679,81197.0,81196.0,0.43329137]
[1744292372908,0.0001679,81197.0,81196.0,0.17465937]
[1744292373189,0.0001679,81197.0,81196.0,0.13509467]
[1744292373411,0.0001679,81197.0,81196.0,0.14740967]
[1744292373744,0.0001679,81197.0,81196.0,0.14987216]
[1744292373947,0.0003358,81221.0,81220.0,0.258556]
[1744292374148,0.00076108,81221.0,81220.0,0.37910982]
[1744292374349,0.00076108,81221.0,81220.0,0.44530431]
[1744292375351,0.00076108,81221.0,81220.0,0.45669152]
[1744292375553,8e-08,81221.0,81220.0,0.79669152]
[1744292375751,5e-07,81226.0,81225.0,0.02685185]
[1744292375996,5e-07,81226.0,81225.0,0.16069375]
[1744292375997,0.00012798,81226.0,81225.0,0.16069375]
[1744292376170,0.0001679,81230.0,81228.0,0.258531]
[1744292376388,0.0001679,81230.0,81228.0,0.39362567]
[1744292376568,0.0001679,81230.0,81228.0,0.38131467]
[1744292376776,0.0001679,81230.0,81228.0,0.12055382]
[1744292376978,0.0001679,81230.0,81228.0,0.13532656]
[1744292377183,0.0001679,81230.0,81228.0,0.14740567]
[1744292377603,0.0001679,81246.0,81231.0,0.258521]
[1744292377803,0.0001679,81246.0,81231.0,0.38130567]
[1744292378025,0.0001679,81246.0,81231.0,0.14740467]
[1744292378229,0.246195,81237.0,81231.0,0.12055382]
[1744292378426,0.012308,81243.0,81231.0,0.12055382]
[1744292378627,0.246173,81244.0,81231.0,0.12055382]
[1744292378826,0.0001679,81246.0,81231.0,0.12055382]
[1744292378988,0.246258,81242.0,81231.0,0.12055382]
[1744292379193,0.2465458,81232.0,81209.0,0.246275]
[1744292379415,0.0003358,81232.0,81216.0,0.00012748]
[1744292379613,0.0003358,81232.0,81217.0,0.16466025]
[1744292379883,0.0003358,81232.0,81218.0,0.01454085]
[1744292380091,0.0126458,81232.0,81219.0,0.12055382]
[1744292380229,0.012312,81217.0,81216.0,0.00012748]
[1744292380418,0.258565,81217.0,81216.0,0.00012748]
[1744292381095,0.598565,81217.0,81216.0,0.00012748]
[1744292381293,0.598565,81217.0,81192.0,0.12669931]
[1744292381294,0.258642,81193.0,81192.0,0.12669931]
[1744292381596,0.598642,81193.0,81192.0,0.12669931]
[1744292381940,0.258642,81193.0,81192.0,0.12669931]
[1744292382139,0.71919582,81193.0,81192.0,0.12669931]
[1744292382351,0.598681,81181.0,81180.0,0.16351415]
[1744292382551,0.71923482,81181.0,81180.0,4e-08]
[1744292382748,0.71923482,81181.0,81158.0,0.31503584]
[1744292382749,0.352319,81171.0,81170.0,3.9e-07]
[1744292383000,0.59875,81159.0,81158.0,0.02591638]
[1744292383200,0.71930382,81159.0,81158.0,0.02591638]
[1744292383430,0.258731,81166.0,81159.0,0.16545642]
[1744292383627,0.34,81165.0,81159.0,0.16545642]
[1744292383926,0.4,81174.0,81159.0,0.28601024]
[1744292384128,0.4,81174.0,81160.0,0.00246403]
[1744292384376,0.4,81174.0,81160.0,0.12055382]
[1744292384574,0.4,81174.0,81161.0,0.36943765]
[1744292384773,0.4,81174.0,81161.0,0.12055382]
[1744292384925,0.4,81174.0,81161.0,0.12301754]
[1744292385294,0.4,81174.0,81161.0,0.12055382]
[1744292385440,0.34,81178.0,81161.0,0.12055382]
[1744292385774,0.246378,81176.0,81162.0,0.05494537]
[1744292386063,0.586374,81178.0,81162.0,0.05494537]
[1744292386064,0.34,81178.0,81163.0,0.12055382]
[1744292386208,0.012318,81176.0,81163.0,0.12055382]
[1744292386409,0.34,81178.0,81159.0,0.16545642]
[1744292386410,0.01232,81163.0,81159.0,0.16545642]
[1744292386610,0.012321,81162.0,81159.0,0.16545642]
[1744292386865,0.246414,81164.0,81159.0,0.16545642]
[1744292387066,0.246426,81160.0,81159.0,0.16545642]
[1744292387243,0.258747,81160.0,81159.0,0.16545642]
[1744292387447,0.258747,81160.0,81158.0,0.00042528]
[1744292387651,0.52007482,81159.0,81158.0,0.00042528]
[1744292388208,0.82493959,81159.0,81158.0,0.00042528]
[1744292389950,0.82493959,81159.0,81158.0,2.8e-07]
[1744292391394,1.22493959,81159.0,81158.0,2.8e-07]
[1744292393848,0.2465,81136.0,81126.0,0.00280031]
[1744292394006,0.68992159,81160.0,81127.0,0.12055382]
[1744292394172,0.01232,81166.0,81140.0,0.246485]
[1744292394372,0.30486477,81186.0,81141.0,0.12301814]
[1744292394574,0.012317,81184.0,81159.0,0.012321]
[1744292394802,0.68992159,81180.0,81136.0,0.012324]
[1744292395002,0.01232,81164.0,81146.0,0.246466]
[1744292395201,0.012319,81170.0,81147.0,0.15158328]
[1744292395403,0.012321,81156.0,81147.0,0.14911921]
[1744292395603,0.68992159,81180.0,81147.0,0.12055382]
[1744292395604,0.246431,81159.0,81147.0,0.12055382]
[1744292395953,0.246431,81159.0,81136.0,0.012324]
[1744292395954,0.012324,81140.0,81128.0,0.01213151]
[1744292396153,0.012324,81137.0,81120.0,0.0484]
[1744292396439,0.012324,81137.0,81128.0,0.0004257]
[1744292396638,0.012323,81143.0,81129.0,0.1230187]
[1744292396856,0.012324,81139.0,81130.0,0.03706418]
[1744292397001,0.012324,81138.0,81128.0,0.0004257]
[1744292397204,0.012325,81135.0,81128.0,0.0004257]
[1744292397406,0.258846,81129.0,81128.0,0.0004257]
[1744292398212,1.1914063,81129.0,81128.0,7e-07]
[1744292398513,0.5989,81112.0,81111.0,7e-07]
[1744292398721,0.586572,81112.0,81111.0,0.00012828]
[1744292399040,0.012327,81118.0,81111.0,0.00012828]
[1744292399041,0.012324,81141.0,81114.0,0.012328]
[1744292399262,0.246501,81136.0,81118.0,0.246552]
[1744292399465,0.246501,81136.0,81119.0,0.12055382]
[1744292399662,0.012324,81138.0,81119.0,0.12055382]
[1744292399865,0.012324,81140.0,81120.0,0.00246496]
[1744292400066,0.012324,81140.0,81122.0,0.246542]
[1744292400400,0.246473,81145.0,81128.0,0.246522]
[1744292400602,0.246493,81138.0,81129.0,0.03695407]
[1744292400810,0.012322,81155.0,81136.0,0.246497]
[1744292401095,0.012322,81155.0,81130.0,0.00246485]
[1744292401096,0.012322,81151.0,81137.0,0.12055382]
[1744292401322,1.2688,81168.0,81114.0,0.417048]
[1744292401323,0.93635059,81160.0,81114.0,0.0472]
[1744292401457,0.93635059,81160.0,81076.0,0.0003358]
[1744292401458,0.5989,81112.0,81101.0,0.0003358]
[1744292401664,0.246618,81097.0,81096.0,9e-07]
[1744292401875,0.598977,81088.0,81087.0,6e-07]
[1744292402253,1.11953082,81088.0,81087.0,6e-07]
[1744292402728,1.11953082,81088.0,81081.0,6e-07]
[1744292402729,0.598996,81082.0,81081.0,6e-07]
[1744292402993,0.34,81082.0,81081.0,6e-07]
[1744292403167,0.352333,81082.0,81081.0,6e-07]
[1744292403374,0.599012,81077.0,81029.0,0.246822]
[1744292403579,0.599012,81077.0,81076.0,0.00046324]
[1744292403580,0.71956582,81077.0,81076.0,0.00046324]
[1744292403972,1.11956582,81077.0,81076.0,0.00046324]
[1744292404931,0.246631,81093.0,81078.0,0.246675]
[1744292405148,0.001,81082.0,81079.0,0.14773407]
[1744292405372,0.68992159,81110.0,81095.0,0.246622]
[1744292405570,0.00908614,81130.0,81099.0,0.246609]
[1744292405571,0.012328,81116.0,81099.0,0.246609]
[1744292405799,0.012328,81116.0,81088.0,0.246643]
[1744292405800,0.012329,81106.0,81084.0,0.246657]
[1744292405977,0.004,81139.0,81087.0,0.246648]
[1744292405978,0.012329,81109.0,81087.0,0.246648]
[1744292406158,0.16118352,81117.0,81094.0,0.246627]
[1744292406365,0.246577,81111.0,81095.0,0.12301962]
[1744292406580,0.012328,81112.0,81096.0,0.246621]
[1744292406809,0.012328,81111.0,81097.0,0.12301946]
[1744292407010,0.012331,81092.0,81063.0,0.37970573]
[1744292407208,0.012331,81092.0,81057.0,0.0487]
[1744292407209,0.259012,81077.0,81065.0,0.00280244]
[1744292407412,0.012332,81085.0,81065.0,0.00280244]
[1744292407413,0.258986,81086.0,81065.0,0.00280252]
[1744292407615,0.258985,81086.0,81065.0,0.24951526]
[1744292407788,0.68992159,81100.0,81065.0,0.24951526]
[1744292407789,0.01233,81103.0,81078.0,0.012333]
[1744292407993,0.246616,81098.0,81082.0,0.246662]
[1744292408339,0.012332,81086.0,81079.0,0.01333501]
[1744292408538,0.246657,81085.0,81065.0,0.2470508]
[1744292408706,0.258991,81084.0,81065.0,0.2470508]
[1744292409040,0.246666,81081.0,81066.0,0.24671]
[1744292409333,0.246666,81081.0,81065.0,0.0003358]
[1744292409334,0.259012,81077.0,81065.0,0.0003358]
[1744292410942,0.37956582,81077.0,81065.0,0.0003358]
[1744292411161,0.37956582,81077.0,81076.0,2.4e-07]
[1744292411162,0.71956582,81077.0,81076.0,2.4e-07]
[1744292411445,1.11956582,81077.0,81076.0,2.4e-07]
[1744292412026,1.12056582,81077.0,81076.0,2.4e-07]
[1744292412226,1.54586318,81077.0,81076.0,2.4e-07]
[1744292412427,1.42443059,81077.0,81076.0,2.4e-07]
[1744292412833,1.42643059,81077.0,81076.0,2.4e-07]
[1744292413226,0.259092,81052.0,81051.0,0.004]
[1744292413428,0.259085,81055.0,81051.0,0.0041278]
[1744292413429,0.24675,81054.0,81051.0,0.0041278]
[1744292413629,0.012337,81052.0,81051.0,0.0041278]
[1744292413815,0.259085,81055.0,81051.0,0.0041278]
[1744292414016,0.012336,81063.0,81051.0,0.0041278]
[1744292414238,0.246725,81062.0,81051.0,0.02923467]
[1744292414439,0.246719,81064.0,81051.0,0.12468162]
[1744292414805,0.012335,81065.0,81051.0,0.12468162]
[1744292414959,0.82541859,81077.0,81051.0,0.12468162]
[1744292414960,0.001,81052.0,81051.0,0.0041278]
[1744292415278,0.70486477,81077.0,81051.0,0.0041278]
[1744292415279,0.012334,81072.0,81053.0,0.246752]
[1744292415505,0.001,81062.0,81056.0,0.24674]
[1744292415698,0.001,81062.0,81057.0,0.12055382]
[1744292415837,0.001,81062.0,81051.0,0.0041278]
[1744292416040,0.001,81062.0,81052.0,0.36730782]
[1744292416287,0.001,81062.0,81057.0,0.246738]
[1744292416500,0.001,81062.0,81060.0,0.246729]
[1744292416702,0.001,81062.0,81061.0,0.13288982]
[1744292416905,0.001,81062.0,81061.0,0.17888982]
[1744292417139,0.001,81062.0,81061.0,0.18135613]
[1744292417344,1.26984,81096.0,81084.0,0.246654]
[1744292417530,1.26984,81096.0,81085.0,0.0258987]
[1744292417531,0.246649,81087.0,81085.0,0.0258987]
[1744292417726,1.26984,81096.0,81061.0,0.046]
[1744292417727,0.246679,81077.0,81061.0,0.046]
[1744292417885,0.012334,81071.0,81061.0,0.046]
[1744292418085,0.012335,81069.0,81055.0,0.246745]
[1744292418287,0.001,81062.0,81056.0,0.02783178]
[1744292418487,0.012335,81066.0,81051.0,0.004]
[1744292418691,0.012336,81057.0,81048.0,0.0001679]
[1744292419226,0.246692,81073.0,81059.0,0.246733]
[1744292419397,0.68992159,81090.0,81064.0,0.246716]
[1744292419747,0.68992159,81090.0,81059.0,0.012336]
[1744292419748,0.012334,81075.0,81057.0,0.246738]
[1744292420051,0.352332,81089.0,81065.0,0.25905]
[1744292420240,0.01233,81099.0,81065.0,0.44214467]
[1744292420436,0.246675,81079.0,81065.0,0.41526882]
[1744292420641,0.246675,81079.0,81059.0,0.246733]
[1744292420642,0.012334,81071.0,81057.0,0.0468]
[1744292420844,0.68992159,81080.0,81055.0,0.012337]
[1744292421045,0.246553,81119.0,81095.0,0.012331]
[1744292421244,0.012329,81104.0,81096.0,0.00246591]
[1744292421387,0.012329,81105.0,81087.0,0.246648]
[1744292421587,0.012329,81105.0,81088.0,0.14521862]
[1744292421838,0.004,81109.0,81088.0,0.0246648]
[1744292422043,0.004,81109.0,81073.0,0.01454085]